fUSD/lending_fUSD_20250513
["ID","MTS","AMOUNT","RATE_DAILY","PERIOD"]
[360965851,1747167052240,-500.0,0.00010998,2]
[360965853,1747167052249,-500.0,0.00010998,2]
[360965855,1747167052259,-500.0,0.00010998,2]
[360965857,1747167052268,-500.0,0.00010998,2]
[360965859,1747167052278,-502.88024692,0.00010998,2]
[360965860,1747167052288,-1000.0,0.00010999,2]
[360965862,1747167052297,-1000.0,0.00010999,2]
[360965864,1747167052307,-1000.0,0.00010999,2]
[360965866,1747167052317,-500.0,0.00010999,2]
[360965868,1747167052329,-500.0,0.00010999,2]
[360965870,1747167052339,-471.5,0.00010999,2]
[360965872,1747167052348,-14180.47,0.00010999,2]
[360965874,1747167052358,-173.23072862,0.00010999,2]
[360965876,1747167052368,-6152.1,0.00010999,2]
[360965878,1747167052378,-8488.63,0.00010999,2]
[360965880,1747167052387,-523.47,0.00010999,2]
[360965882,1747167052396,-2660.4,0.00010999,2]
[360965884,1747167052406,-573.29,0.00010999,2]
[360965885,1747167052415,-163.73588802,0.00010999,2]
[360965887,1747167052425,-300.0,0.00010999,2]
[360965889,1747167052435,-1080.04615381,0.00011,2]
[360965891,1747167052444,-409965.13917005,0.00011,2]
[360965895,1747167052469,-684.48360666,0.00011,2]
[360966452,1747167303219,160.30278812,1e-05,2]
[360966453,1747167399035,150.0,0.000135,5]
[360966454,1747167539888,13500.0,0.00025,60]
[360966455,1747167796721,1000.0,9.926e-05,2]
[360966471,1747168071484,162.44,9.918e-05,2]
[360966472,1747168095973,250.0,9.878e-05,2]
[360966488,1747168158245,1739.53,8.219e-05,2]
[360966494,1747168189220,-162.01,9.975e-05,2]
[360966495,1747168189254,-500.0,9.985e-05,2]
[360966496,1747168189289,-500.0,9.985e-05,2]
[360966497,1747168189323,-217.31354724,9.985e-05,2]
[360966498,1747168189350,-250.0,9.988e-05,2]
[360966499,1747168189377,-450.0,0.0001,2]
[360966503,1747168212043,450.0,0.0001,2]
[360966521,1747168232448,-162.01,0.0001,2]
[360966522,1747168232457,-250.0,0.00010013,2]
[360966523,1747168232466,-17.80486491,0.00010025,2]
[360966527,1747168237896,-144.20513509,0.00010025,2]
[360966528,1747168237905,-181.15,0.00010054,2]
[360966529,1747168237915,-1301.35,0.00010067,2]
[360966530,1747168237924,-255.09234491,0.00010091,2]
[360966531,1747168238001,-44.90765509,0.00010091,2]
[360966532,1747168238011,-488.65248804,0.00010092,2]
[360966533,1747168238023,-523.05,0.00010092,2]
[360966535,1747168240060,-988.29751196,0.00010092,2]
[360966536,1747168240070,-600.0,0.00010092,2]
[360966537,1747168240079,-1200.0,0.00010092,2]
[360966538,1747168240089,-8443.06219023,0.00010093,2]
[360966539,1747168240121,-364.1861437,0.00010093,2]
[360966540,1747168240284,-15092.75166607,0.00010093,2]
[360966541,1747168240294,-151.0,0.00010398,2]
[360966542,1747168240304,-156.68722446,0.00010398,2]
[360966543,1747168240313,-151.0,0.00010398,2]
[360966544,1747168240324,-154.57168871,0.00010398,2]
[360966545,1747168240333,-668.65185757,0.00010398,2]
[360966546,1747168240342,-287.61899177,0.00010398,2]
[360966547,1747168240353,-207.4,0.00010398,2]
[360966548,1747168240362,-1739.53,0.00010472,2]
[360966549,1747168240371,-150.0,0.00010889,2]
[360966550,1747168240381,-10807.59414894,0.0001089,2]
[360966551,1747168240390,-727.1486,0.00010894,2]
[360966552,1747168240399,-591.08718816,0.00010894,2]
[360966553,1747168240408,-2543.775,0.00010895,2]
[360966554,1747168240422,-175.242,0.00010895,2]
[360966555,1747168240433,-707.43,0.00010895,2]
[360966556,1747168240442,-702.84,0.00010895,2]
[360966557,1747168240452,-1032.6436,0.00010895,2]
[360966558,1747168240461,-192.14601375,0.00010899,2]
[360966559,1747168240470,-9736.3487,0.000109,2]
[360966560,1747168240481,-169.16377742,0.000109,2]
[360966561,1747168240491,-162.44,0.0001091,2]
[360966562,1747168240501,-169.16377742,0.00010933,2]
[360966563,1747168240512,-785.2922093,0.00010944,2]
[360966564,1747168240521,-693.3919763,0.00010946,2]
[360966565,1747168240531,-298.26089446,0.00010946,2]
[360966566,1747168240540,-500.0,0.00010959,2]
[360966567,1747168240549,-500.0,0.00010959,2]
[360966568,1747168240559,-500.0,0.00010959,2]
[360966569,1747168240568,-500.0,0.00010959,2]
[360966570,1747168240577,-500.0,0.00010959,2]
[360966571,1747168240587,-500.0,0.00010959,2]
[360966572,1747168240596,-500.0,0.00010959,2]
[360966573,1747168240605,-500.0,0.00010959,2]
[360966574,1747168240614,-169.16377742,0.00010966,2]
[360966575,1747168240623,-173.37108345,0.00010973,2]
[360966576,1747168240634,-500.0,0.00010973,2]
[360966577,1747168240643,-500.0,0.00010973,2]
[360966578,1747168240652,-500.0,0.00010973,2]
[360966579,1747168240662,-529.41697482,0.00010973,2]
[360966580,1747168240671,-500.0,0.00010973,2]
[360966581,1747168240680,-500.0,0.00010973,2]
[360966582,1747168240690,-500.0,0.00010973,2]
[360966583,1747168240699,-500.0,0.00010973,2]
[360966584,1747168240711,-501.92231379,0.00010973,2]
[360966585,1747168240724,-500.0,0.00010973,2]
[360966586,1747168240735,-500.0,0.00010973,2]
[360966587,1747168240745,-250.0,0.00010973,2]
[360966588,1747168240754,-200.0,0.00010973,2]
[360966589,1747168240763,-200.0,0.00010973,2]
[360966590,1747168240772,-500.0,0.0001099,2]
[360966591,1747168240782,-1000.0,0.0001099,2]
[360966592,1747168240791,-9699.51063739,0.00010993,2]
[360966593,1747168240802,-554.36,0.00010993,2]
[360966594,1747168240811,-498.13,0.00010993,2]
[360966595,1747168240819,-400.0,0.00010993,2]
[360966596,1747168240829,-400.0,0.00010993,2]
[360966597,1747168240838,-400.0,0.00010993,2]
[360966598,1747168240847,-671.09,0.00010993,2]
[360966599,1747168240856,-1165.62,0.00010993,2]
[360966600,1747168240866,-400.0,0.00010993,2]
[360966601,1747168240875,-400.0,0.00010993,2]
[360966602,1747168240888,-400.0,0.00010993,2]
[360966603,1747168240898,-400.0,0.00010993,2]
[360966604,1747168240907,-574.3,0.00010993,2]
[360966605,1747168240916,-400.0,0.00010993,2]
[360966606,1747168240926,-400.0,0.00010993,2]
[360966607,1747168240935,-510.94,0.00010993,2]
[360966608,1747168240944,-1077.33,0.00010993,2]
[360966609,1747168240953,-4340.09,0.00010993,2]
[360966610,1747168240963,-400.0,0.00010993,2]
[360966611,1747168240972,-400.0,0.00010993,2]
[360966612,1747168240981,-436.47,0.00010993,2]
[360966613,1747168240990,-400.0,0.00010993,2]
[360966614,1747168240999,-400.0,0.00010993,2]
[360966615,1747168241009,-400.0,0.00010993,2]
[360966616,1747168241018,-400.0,0.00010993,2]
[360966617,1747168241028,-400.0,0.00010993,2]
[360966618,1747168241037,-400.0,0.00010993,2]
[360966619,1747168241046,-715.58,0.00010993,2]
[360966620,1747168241056,-400.0,0.00010993,2]
[360966621,1747168241065,-335.48251,0.00010993,2]
[360966622,1747168241075,-400.0,0.00010993,2]
[360966623,1747168241084,-635.63,0.00010993,2]
[360966624,1747168241093,-597.49,0.00010993,2]
[360966625,1747168241103,-400.0,0.00010993,2]
[360966626,1747168241113,-400.0,0.00010993,2]
[360966627,1747168241123,-400.0,0.00010993,2]
[360966628,1747168241132,-409.73,0.00010994,2]
[360966629,1747168241142,-489.21,0.00010994,2]
[360966630,1747168241151,-400.0,0.00010994,2]
[360966631,1747168241161,-400.0,0.00010994,2]
[360966632,1747168241170,-457.53,0.00010994,2]
[360966633,1747168241180,-405.17,0.00010994,2]
[360966634,1747168241189,-484.29,0.00010994,2]
[360966635,1747168241198,-400.0,0.00010994,2]
[360966636,1747168241208,-641.24,0.00010994,2]
[360966637,1747168241217,-400.0,0.00010994,2]
[360966638,1747168241227,-400.0,0.00010994,2]
[360966639,1747168241236,-400.0,0.00010994,2]
[360966640,1747168241246,-400.0,0.00010994,2]
[360966641,1747168241255,-400.0,0.00010994,2]
[360966642,1747168241264,-400.0,0.00010994,2]
[360966643,1747168241274,-400.0,0.00010994,2]
[360966644,1747168241283,-400.0,0.00010994,2]
[360966645,1747168241292,-400.0,0.00010994,2]
[360966646,1747168241302,-400.0,0.00010994,2]
[360966647,1747168241312,-400.0,0.00010994,2]
[360966648,1747168241321,-400.0,0.00010994,2]
[360966649,1747168241331,-400.0,0.00010994,2]
[360966650,1747168241341,-1117.03,0.00010994,2]
[360966651,1747168241350,-400.0,0.00010994,2]
[360966652,1747168241360,-1119.9,0.00010994,2]
[360966653,1747168241370,-625.39,0.00010994,2]
[360966654,1747168241382,-575.02,0.00010994,2]
[360966655,1747168241392,-230.07879655,0.00010994,2]
[360966656,1747168241402,-400.0,0.00010994,2]
[360966657,1747168241411,-391.82713505,0.00010994,2]
[360966658,1747168241420,-509.94,0.00010994,2]
[360966659,1747168241430,-400.0,0.00010994,2]
[360966660,1747168241440,-400.0,0.00010994,2]
[360966661,1747168241449,-400.0,0.00010994,2]
[360966662,1747168241458,-430.94,0.00010994,2]
[360966663,1747168241468,-400.0,0.00010994,2]
[360966664,1747168241477,-400.0,0.00010994,2]
[360966665,1747168241487,-400.0,0.00010994,2]
[360966666,1747168241497,-400.0,0.00010994,2]
[360966667,1747168241506,-400.0,0.00010994,2]
[360966668,1747168241516,-400.0,0.00010994,2]
[360966669,1747168241716,-504.24675658,0.00010994,2]
[360966670,1747168241727,-400.0,0.00010994,2]
[360966671,1747168241737,-900.85,0.00010994,2]
[360966672,1747168241746,-400.0,0.00010994,2]
[360966673,1747168241756,-806.52,0.00010994,2]
[360966674,1747168241765,-400.0,0.00010994,2]
[360966675,1747168241775,-440.24655438,0.00010994,2]
[360966676,1747168241785,-448.98,0.00010994,2]
[360966677,1747168241795,-400.0,0.00010994,2]
[360966678,1747168241805,-400.0,0.00010994,2]
[360966679,1747168241815,-400.0,0.00010994,2]
[360966680,1747168241824,-400.0,0.00010994,2]
[360966681,1747168241833,-400.0,0.00010994,2]
[360966682,1747168241843,-508.7,0.00010994,2]
[360966683,1747168241852,-400.0,0.00010994,2]
[360966684,1747168241862,-400.0,0.00010994,2]
[360966685,1747168241871,-468.15,0.00010994,2]
[360966686,1747168241882,-720.99,0.00010994,2]
[360966687,1747168241891,-400.0,0.00010994,2]
[360966688,1747168241901,-400.0,0.00010994,2]
[360966689,1747168241911,-2041.17,0.00010994,2]
[360966690,1747168241920,-436.18,0.00010994,2]
[360966691,1747168241930,-400.0,0.00010994,2]
[360966692,1747168241939,-491.47,0.00010994,2]
[360966693,1747168241949,-400.0,0.00010994,2]
[360966694,1747168241958,-400.0,0.00010994,2]
[360966695,1747168241967,-400.0,0.00010994,2]
[360966696,1747168241976,-400.0,0.00010994,2]
[360966697,1747168241986,-939.58,0.00010994,2]
[360966698,1747168241997,-400.0,0.00010994,2]
[360966699,1747168242006,-401.1,0.00010994,2]
[360966700,1747168242016,-992.09,0.00010994,2]
[360966701,1747168242025,-679.35,0.00010994,2]
[360966702,1747168242034,-400.0,0.00010994,2]
[360966703,1747168242044,-400.0,0.00010994,2]
[360966704,1747168242053,-748.61,0.00010994,2]
[360966705,1747168242063,-400.0,0.00010994,2]
[360966706,1747168242072,-400.0,0.00010994,2]
[360966707,1747168242081,-1067.98,0.00010994,2]
[360966708,1747168242091,-400.0,0.00010994,2]
[360966709,1747168242100,-620.27,0.00010994,2]
[360966710,1747168242109,-425.71,0.00010994,2]
[360966711,1747168242119,-400.0,0.00010994,2]
[360966712,1747168242129,-590.3,0.00010994,2]
[360966713,1747168242138,-1083.73,0.00010994,2]
[360966714,1747168242148,-400.0,0.00010994,2]
[360966715,1747168242157,-1082.44,0.00010994,2]
[360966716,1747168242166,-689.76,0.00010994,2]
[360966717,1747168242175,-400.0,0.00010994,2]
[360966718,1747168242185,-793.74,0.00010994,2]
[360966719,1747168242194,-610.87,0.00010994,2]
[360966720,1747168242203,-446.24,0.00010994,2]
[360966721,1747168242212,-494.24,0.00010994,2]
[360966722,1747168242221,-572.62,0.00010994,2]
[360966723,1747168242231,-1007.71,0.00010994,2]
[360966724,1747168242240,-400.0,0.00010994,2]
[360966725,1747168242249,-514.16,0.00010994,2]
[360966726,1747168242259,-448.06,0.00010994,2]
[360966727,1747168242268,-494.52,0.00010994,2]
[360966728,1747168242278,-400.0,0.00010994,2]
[360966729,1747168242287,-400.0,0.00010994,2]
[360966730,1747168242297,-1021.71,0.00010994,2]
[360966731,1747168242306,-825.15,0.00010994,2]
[360966732,1747168242316,-452.33,0.00010994,2]
[360966733,1747168242325,-622.08,0.00010994,2]
[360966734,1747168242334,-400.0,0.00010994,2]
[360966735,1747168242344,-2417.006631,0.00010994,2]
[360966736,1747168242353,-990.67,0.00010994,2]
[360966737,1747168242362,-179.037352,0.00010994,2]
[360966738,1747168242371,-400.0,0.00010994,2]
[360966739,1747168242380,-1527.95,0.00010994,2]
[360966740,1747168242389,-2039.09,0.00010994,2]
[360966741,1747168242399,-472.71,0.00010994,2]
[360966742,1747168242408,-2000.0,0.00010994,2]
[360966743,1747168242417,-515.7,0.00010994,2]
[360966744,1747168242426,-1015.79,0.00010994,2]
[360966745,1747168242435,-888.51,0.00010994,2]
[360966746,1747168242444,-429.02,0.00010994,2]
[360966747,1747168242453,-456.36,0.00010994,2]
[360966748,1747168242464,-1764.56,0.00010994,2]
[360966749,1747168242473,-516.13,0.00010994,2]
[360966750,1747168242482,-400.0,0.00010994,2]
[360966751,1747168242492,-400.0,0.00010994,2]
[360966752,1747168242501,-400.0,0.00010994,2]
[360966753,1747168242511,-1681.99,0.00010994,2]
[360966754,1747168242520,-1804.91,0.00010994,2]
[360966755,1747168242530,-485.59,0.00010994,2]
[360966756,1747168242539,-400.0,0.00010994,2]
[360966757,1747168242548,-1892.06,0.00010994,2]
[360966758,1747168242558,-600.76,0.00010994,2]
[360966759,1747168242567,-791.4,0.00010994,2]
[360966760,1747168242576,-400.0,0.00010994,2]
[360966761,1747168242586,-400.0,0.00010994,2]
[360966762,1747168242595,-796.51,0.00010994,2]
[360966763,1747168242604,-1700.53,0.00010994,2]
[360966764,1747168242614,-1943.11,0.00010994,2]
[360966765,1747168242624,-400.0,0.00010994,2]
[360966766,1747168242637,-1511.81,0.00010994,2]
[360966767,1747168242647,-482.66,0.00010994,2]
[360966768,1747168242657,-741.39,0.00010994,2]
[360966769,1747168242666,-486.45,0.00010994,2]
[360966770,1747168242676,-400.0,0.00010994,2]
[360966771,1747168242685,-837.96,0.00010994,2]
[360966772,1747168242694,-509.65,0.00010994,2]
[360966773,1747168242704,-400.0,0.00010994,2]
[360966774,1747168242718,-574.45,0.00010994,2]
[360966775,1747168242727,-400.0,0.00010994,2]
[360966776,1747168242736,-400.0,0.00010994,2]
[360966777,1747168242746,-400.0,0.00010994,2]
[360966778,1747168242755,-400.0,0.00010994,2]
[360966780,1747168242764,-1562.07,0.00010994,2]
[360966781,1747168242773,-400.0,0.00010994,2]
[360966782,1747168242783,-2093.43,0.00010994,2]
[360966783,1747168242793,-1538.61,0.00010994,2]
[360966784,1747168242803,-400.0,0.00010994,2]
[360966785,1747168242813,-903.48,0.00010994,2]
[360966786,1747168242822,-680.07,0.00010994,2]
[360966787,1747168242831,-400.0,0.00010994,2]
[360966790,1747168242840,-1131.66,0.00010994,2]
[360966792,1747168242850,-1173.11,0.00010994,2]
[360966794,1747168242859,-1273.47,0.00010994,2]
[360966796,1747168242868,-400.0,0.00010994,2]
[360966798,1747168242878,-400.0,0.00010994,2]
[360966799,1747168242889,-560.59,0.00010994,2]
[360966800,1747168242899,-400.0,0.00010994,2]
[360966801,1747168242908,-400.0,0.00010994,2]
[360966802,1747168242917,-1206.01,0.00010994,2]
[360966804,1747168242926,-1108.58,0.00010994,2]
[360966805,1747168242936,-876.13,0.00010994,2]
[360966806,1747168242945,-400.0,0.00010994,2]
[360966807,1747168242955,-1329.05,0.00010994,2]
[360966809,1747168242964,-528.0810643,0.00010994,2]
[360966810,1747168242973,-400.0,0.00010994,2]
[360966811,1747168242983,-400.0,0.00010994,2]
[360966812,1747168242993,-766.09,0.00010994,2]
[360966813,1747168243002,-1223.64,0.00010994,2]
[360966814,1747168243012,-400.0,0.00010994,2]
[360966815,1747168243021,-558.71,0.00010994,2]
[360966816,1747168243031,-945.6,0.00010994,2]
[360966817,1747168243040,-603.99,0.00010994,2]
[360966818,1747168243050,-400.0,0.00010994,2]
[360966819,1747168243059,-502.52,0.00010994,2]
[360966820,1747168243069,-400.0,0.00010994,2]
[360966821,1747168243079,-511.35369635,0.00010994,2]
[360966822,1747168243089,-400.0,0.00010994,2]
[360966823,1747168243098,-400.0,0.00010994,2]
[360966824,1747168243108,-400.0,0.00010994,2]
[360966825,1747168243118,-1925.73,0.00010994,2]
[360966826,1747168243127,-1310.26,0.00010994,2]
[360966827,1747168243139,-1260.25,0.00010994,2]
[360966828,1747168243149,-400.0,0.00010994,2]
[360966829,1747168243159,-400.0,0.00010994,2]
[360966830,1747168243168,-400.0,0.00010994,2]
[360966831,1747168243178,-1031.99,0.00010994,2]
[360966832,1747168243187,-1718.22,0.00010994,2]
[360966833,1747168243196,-400.0,0.00010994,2]
[360966834,1747168243205,-400.0,0.00010994,2]
[360966835,1747168243215,-481.85,0.00010994,2]
[360966836,1747168243224,-618.53,0.00010994,2]
[360966837,1747168243233,-651.19,0.00010994,2]
[360966838,1747168243242,-647.84,0.00010994,2]
[360966839,1747168243251,-400.0,0.00010994,2]
[360966840,1747168243261,-496.22,0.00010994,2]
[360966841,1747168243270,-536.97,0.00010994,2]
[360966842,1747168243279,-1023.93,0.00010994,2]
[360966843,1747168243288,-400.0,0.00010994,2]
[360966844,1747168243297,-678.84,0.00010994,2]
[360966845,1747168243306,-513.28,0.00010994,2]
[360966846,1747168243315,-1267.4,0.00010994,2]
[360966847,1747168243324,-499.0,0.00010994,2]
[360966848,1747168243333,-710.09,0.00010994,2]
[360966849,1747168243343,-400.0,0.00010994,2]
[360966850,1747168243352,-484.86,0.00010994,2]
[360966851,1747168243361,-431.93,0.00010994,2]
[360966852,1747168243371,-400.0,0.00010994,2]
[360966853,1747168243380,-1221.3,0.00010994,2]
[360966854,1747168243390,-400.0,0.00010994,2]
[360966856,1747168243400,-442.04,0.00010994,2]
[360966857,1747168243409,-2548.53,0.00010994,2]
[360966858,1747168243418,-400.0,0.00010994,2]
[360966859,1747168243428,-400.0,0.00010994,2]
[360966860,1747168243437,-400.0,0.00010994,2]
[360966862,1747168243446,-400.0,0.00010994,2]
[360966864,1747168243455,-971.83,0.00010994,2]
[360966866,1747168243465,-400.0,0.00010994,2]
[360966868,1747168243475,-1154.01,0.00010994,2]
[360966870,1747168243484,-636.2,0.00010994,2]
[360966872,1747168243493,-400.0,0.00010994,2]
[360966874,1747168243503,-400.0,0.00010994,2]
[360966876,1747168243512,-1160.82,0.00010994,2]
[360966878,1747168243521,-400.0,0.00010994,2]
[360966880,1747168243530,-2111.91,0.00010994,2]
[360966882,1747168243539,-400.0,0.00010994,2]
[360966884,1747168243549,-6988.92,0.00010994,2]
[360966886,1747168243558,-400.0,0.00010994,2]
[360966888,1747168243568,-400.0,0.00010994,2]
[360966890,1747168243577,-400.0,0.00010994,2]
[360966892,1747168243586,-3074.32,0.00010994,2]
[360966894,1747168243595,-784.63,0.00010994,2]
[360966896,1747168243604,-688.4,0.00010994,2]
[360966898,1747168243613,-515.52,0.00010994,2]
[360966900,1747168243622,-5492.21,0.00010994,2]
[360966902,1747168243633,-897.7,0.00010994,2]
[360966904,1747168243641,-400.0,0.00010994,2]
[360966906,1747168243650,-400.0,0.00010994,2]
[360966908,1747168243659,-1882.47,0.00010994,2]
[360966910,1747168243669,-400.0,0.00010994,2]
[360966911,1747168243678,-400.0,0.00010994,2]
[360966912,1747168243687,-440.02,0.00010994,2]
[360966913,1747168243697,-400.0,0.00010994,2]
[360966914,1747168243709,-680.15,0.00010994,2]
[360966915,1747168243718,-969.03,0.00010994,2]
[360966916,1747168243727,-1716.61,0.00010994,2]
[360966917,1747168243737,-447.36,0.00010994,2]
[360966919,1747168243746,-1324.12,0.00010994,2]
[360966920,1747168243756,-400.0,0.00010994,2]
[360966922,1747168243765,-4394.8,0.00010994,2]
[360966924,1747168243775,-451.85,0.00010994,2]
[360966925,1747168243784,-403.82,0.00010994,2]
[360966926,1747168243794,-961.53,0.00010995,2]
[360966927,1747168243804,-400.0,0.00010995,2]
[360966928,1747168243813,-400.0,0.00010995,2]
[360966929,1747168243823,-1087.53,0.00010995,2]
[360966930,1747168243832,-400.0,0.00010995,2]
[360966931,1747168243841,-1322.57,0.00010995,2]
[360966932,1747168243850,-400.0,0.00010995,2]
[360966933,1747168243860,-400.0,0.00010995,2]
[360966934,1747168243870,-400.0,0.00010995,2]
[360966935,1747168243880,-400.0,0.00010995,2]
[360966936,1747168243891,-434.92,0.00010995,2]
[360966937,1747168243900,-400.0,0.00010995,2]
[360966938,1747168243910,-422.11,0.00010995,2]
[360966939,1747168243919,-400.0,0.00010995,2]
[360966940,1747168243929,-696.03,0.00010995,2]
[360966941,1747168243938,-400.0,0.00010995,2]
[360966942,1747168243948,-326.70955969,0.00010995,2]
[360966943,1747168243957,-400.0,0.00010995,2]
[360966944,1747168243967,-400.0,0.00010995,2]
[360966945,1747168243977,-400.0,0.00010995,2]
[360966946,1747168243987,-400.0,0.00010995,2]
[360966947,1747168243996,-527.48,0.00010995,2]
[360966948,1747168244006,-581.7,0.00010995,2]
[360966949,1747168244015,-400.0,0.00010995,2]
[360966950,1747168244025,-400.0,0.00010995,2]
[360966951,1747168244035,-400.0,0.00010995,2]
[360966952,1747168244044,-400.0,0.00010995,2]
[360966953,1747168244054,-1622.21,0.00010995,2]
[360966954,1747168244064,-1156.17,0.00010995,2]
[360966955,1747168244074,-400.0,0.00010995,2]
[360966956,1747168244084,-669.43,0.00010995,2]
[360966957,1747168244093,-779.81,0.00010995,2]
[360966958,1747168244103,-400.0,0.00010995,2]
[360966959,1747168244113,-400.0,0.00010995,2]
[360966960,1747168244122,-2028.96,0.00010995,2]
[360966961,1747168244134,-1093.16,0.00010995,2]
[360966962,1747168244143,-448.76,0.00010995,2]
[360966963,1747168244153,-1101.34,0.00010995,2]
[360966964,1747168244163,-400.0,0.00010995,2]
[360966965,1747168244173,-400.0,0.00010995,2]
[360966966,1747168244182,-612.41,0.00010995,2]
[360966967,1747168244192,-1182.79,0.00010995,2]
[360966968,1747168244201,-400.0,0.00010995,2]
[360966969,1747168244210,-717.61,0.00010995,2]
[360966970,1747168244220,-400.0,0.00010995,2]
[360966971,1747168244229,-400.0,0.00010995,2]
[360966972,1747168244239,-167.23539351,0.00010995,2]
[360966973,1747168244248,-978.38,0.00010995,2]
[360966974,1747168244257,-400.0,0.00010995,2]
[360966975,1747168244267,-400.0,0.00010995,2]
[360966976,1747168244276,-1883.32,0.00010995,2]
[360966977,1747168244285,-400.0,0.00010995,2]
[360966978,1747168244295,-500.63,0.00010995,2]
[360966979,1747168244304,-476.35,0.00010995,2]
[360966980,1747168244313,-400.0,0.00010995,2]
[360966981,1747168244322,-400.0,0.00010995,2]
[360966982,1747168244332,-1424.61,0.00010995,2]
[360966983,1747168244341,-466.51,0.00010995,2]
[360966984,1747168244350,-1604.55,0.00010995,2]
[360966985,1747168244360,-1854.54,0.00010995,2]
[360966986,1747168244369,-400.0,0.00010995,2]
[360966987,1747168244543,-196.998,0.00010995,2]
[360966988,1747168244554,-1125.64,0.00010995,2]
[360966989,1747168244563,-400.0,0.00010995,2]
[360966990,1747168244574,-400.0,0.00010995,2]
[360966991,1747168244583,-400.0,0.00010995,2]
[360966992,1747168244593,-400.0,0.00010995,2]
[360966993,1747168244603,-919.95,0.00010995,2]
[360966994,1747168244612,-937.1,0.00010996,2]
[360966995,1747168244622,-400.0,0.00010996,2]
[360966996,1747168244632,-364.80203159,0.00010996,2]
[360966997,1747168244642,-400.0,0.00010996,2]
[360966998,1747168244651,-400.0,0.00010996,2]
[360966999,1747168244661,-400.0,0.00010996,2]
[360967000,1747168244670,-486.0,0.00010996,2]
[360967001,1747168244679,-400.0,0.00010996,2]
[360967002,1747168244689,-400.0,0.00010996,2]
[360967003,1747168244699,-400.0,0.00010996,2]
[360967004,1747168244708,-400.0,0.00010996,2]
[360967005,1747168244720,-400.0,0.00010996,2]
[360967006,1747168244730,-400.0,0.00010996,2]
[360967007,1747168244739,-610.04,0.00010996,2]
[360967008,1747168244748,-400.0,0.00010996,2]
[360967009,1747168244759,-400.0,0.00010996,2]
[360967010,1747168244769,-400.0,0.00010996,2]
[360967011,1747168244778,-632.93,0.00010996,2]
[360967012,1747168244788,-522.88836107,0.00010996,2]
[360967013,1747168244797,-400.0,0.00010996,2]
[360967014,1747168244807,-471.81610858,0.00010996,2]
[360967015,1747168244816,-400.0,0.00010996,2]
[360967016,1747168244825,-400.0,0.00010996,2]
[360967017,1747168244834,-400.0,0.00010996,2]
[360967018,1747168244844,-400.0,0.00010996,2]
[360967019,1747168244853,-400.0,0.00010996,2]
[360967020,1747168244862,-400.0,0.00010996,2]
[360967021,1747168244872,-625.08,0.00010996,2]
[360967022,1747168244882,-487.89,0.00010996,2]
[360967023,1747168244892,-400.0,0.00010996,2]
[360967024,1747168244901,-400.0,0.00010996,2]
[360967025,1747168244911,-400.0,0.00010996,2]